Workbook

Sheet Nutzungsanleitung
A1: Erhebungstool Trennung der Leistungen im Bundesteilhabegesetz ab 2020
A4: Nutzungsanleitung | E4: Hinweis: Um alle Funktionen des Erhebungstools nutzen zu können, achten Sie bitte darauf, dass Makros in Excel aktiviert werden/bleiben. | R4: Makros aktvieren:
R5: 1. Schritt:
R13: 2. Schritt:

Sheet 1. Datenerfassung
A1: Erhebungstool Trennung der Leistungen im Bundesteilhabegesetz ab 2020
A4: 1. Datenerfassung | B4: Auf diesem Tabellenblatt sind nur Zeilen mit * unbedingt auszufüllen, die anderen Felder sind optional
A6: Name der Einrichtung* | B6: Musterwohnheim | G6: Bayern
G7: Berlin
A8: Straße, Hausnummer | B8: Musterstr. | G8: Brandenburg
G9: Bremen
A10: Postleitzahl* | B10: 12345 | G10: Mecklenburg-Vorpommern
G11: Niedersachsen
A12: Stadt | B12: Musterstadt | G12: Nordrhein-Westfalen
G13: Rheinland-Pfalz
A14: Kommune | B14: Musterkommune | G14: Saarland
G15: Sachsen
A16: Bundesland* | B16: Nordrhein-Westfalen | G16: Sachsen-Anhalt
G17: Schleswig-Holstein
A18: Nutzung zusätzlicher Gebäudeeinheiten* | B18: J/N | G18: Thüringen
A20: Typ der Einrichtung | B20: besondere Wohnform
A22: Bewohnerzahl* | B22: 24
A24: Baujahr Gebäude | B24: 1999
A26: Gebäudeart (Altbau, Plattenbau, Schloß etc.) | B26: Neubau
A28: früherer Leistungstyp*
A30: max. anerkennungsfähige Miete in € für eine Person* | B30: 350 | C30: Bitte erfragen Sie den Wert der anerkennungsfähigen ("durchschnittlichen tatsächlichen angemessenen") Grundsicherungsmiete bei Ihrer/m zuständigen Kommune/Landkreis.
A31: max. anerkennungsfähige Heizkosten in € für eine Person* | B31: 80
A32: anerkennungsfähige Warmmiete des Grundsicherungsträgers (100%) (eventueller 25%-Aufschlag wird auf Tabellenblatt 3 aufgerechnet) | B32: =B30+B31 -> 430

Sheet 2. Flächenzuordnung
A1: Erhebungstool Trennung der Leistungen im Bundesteilhabegesetz ab 2020
A4: 2. Flächenzuordnung
B5: Bisher sind Beispielzahlen hinterlegt, bitte in Spalte C eigene Werte (Gesamtwerte über alle Bewohner, z.B. "Bewohnerbad" = 10 m² je Bewohnerbad x 24 Bewohner = 240 m²) eingeben
A7: Fläche | B7: Zuordnung | C7: m² | D7: Anmerkungen
A8: Individueller Wohnraum
A9: Bewohnerbad/Dusche | B9: KdU | C9: 240
A10: Bewohnerraum mit integriertem Sanitärbereich | B10: KdU | C10: 120
A11: Bewohnerzimmer Einzelzimmer | B11: KdU | C11: 100
A12: Mehrbettzimmer | B12: KdU | C12: 200 | D12: Doppelzimmer 50/50 Aufteilung der individuellen Wohnfläche
A13: Balkon (25%) | B13: KdU | C13: 25 | D13: Anrechnung zu 25% (laut WoFlV), von vornherein anteiligen Wert eingeben
A14: Sonstiges: | B14: KdU | C14: 0
A15: Gesamt Individueller Wohnraum | C15: =SUM(C9:C14) -> 685
A17: Gemeinsamer Wohnraum
A18: Essräume | B18: KdU | C18: 50 | D18: ähnlich wie Küche und Esszimmer einer normalen Wohnung
A19: Gruppenküche/ Wohnküche | B19: KdU | C19: 25
A20: Zentralküche | B20: KdU | C20: 50 | D20: Speisesaal, gehört zum Wohnheim
A21: Gemeinschaftsraum | B21: KdU | C21: 30 | D21: entspricht Wohnzimmer
A22: Flur Wohngruppe | B22: KdU | C22: 30
A23: Barrierefreies Bad mit Badewanne | B23: KdU | C23: 10
A24: Terasse (25%) | B24: KdU | C24: 10 | D24: Analog Balkon (aber nicht individuell für ein Bewohnerzimmer)
A25: Wintergarten (25%) | B25: KdU | C25: 10 | D25: Analog Balkon (aber nicht individuell für ein Bewohnerzimmer)
A26: Abstellraum/ Putzmittelraum KdU | B26: KdU | C26: 25 | D26: je nachdem für was/wen Abstellraum genutzt wird
A27: Rollstuhlabstellplatz | B27: KdU | C27: 25 | D27: Begründung: Rollstuhlfahrer im ABW benötigt ebenfalls einen Rohlstuhlabstellplatz
A28: Sonstiges: | B28: KdU | C28: 0
A29: Sonstiges: | B29: KdU | C29: 0
A30: Gesamt Gemeinsamer Wohnraum | C30: =SUM(C18:C29) -> 265
A32: Fachleistungsflächen
A33: Einrichtungsleitung/ Verwaltung | B33: FL | C33: 10 | D33: Büro der Einrichtungsleitung, Empfang, Verwaltungsbüro
A34: Dienstzimmer/Büro | B34: FL | C34: 20
A35: Aufenthaltsraum Mitarbeiter | B35: FL | C35: 15 | D35: Pausenraum, Aufenthaltsraum
A36: Umkleide Personal/Garderobe | B36: FL | C36: 10
A37: Mitarbeiter WC/Dusche | B37: FL | C37: 10
A38: Besucher WC | B38: FL | C38: 5
A39: (Nacht-)Bereitschaftszimmer/Nachtwachenzimmer | B39: FL | C39: 15
A40: Flur Fachleistungsräume | B40: FL | C40: 10 | D40: Keine Treppenaufgänge und Eingangsbereiche
A41: Therapieräume | B41: FL | C41: 30
A42: Timeout-Raum | B42: FL | C42: 15
A43: Snoezelenraum | B43: FL | C43: 10
A44: Funktionsräume | B44: FL | C44: 20
A45: Therapiebad | B45: FL | C45: 14
A46: Therapieküche | B46: FL | C46: 10
A47: Großküche und Speisesaal | B47: FL | C47: 0 | D47: externer Anbieter, Lebensmittel über RBS zu finanzieren, Trennung der Fremdleistungskosten
A48: Therapeutisches Schwimmbad | B48: FL | C48: 100
A49: Weitere Therapieflächen | B49: FL | C49: 0
A50: Fläche für therapeutisches Reiten | B50: FL | C50: 0 | D50: trägerspezifische Nutzung; Fläche ggf. auch von anderen Nutzern in anderen Einrichtungen der besonderen Wohnform genutzt
A51: Zimmer für Versammlung und Andachten, Trauerzimmer | B51: FL | C51: 10
A52: Vorratsraum | B52: FL | C52: 5 | D52: Lebensmittel o.ä.
A53: Hausmeisterraum/ Werkstatt | B53: FL | C53: 5
A54: Abstellraum/ Putzmittelraum FL | B54: FL | C54: 25 | D54: je nachdem für was/wen Abstellraum genutzt wird
A55: Hauswirtschaftsraum | B55: FL | C55: 10
A56: Hobbyraum | B56: FL | C56: 10
A57: Cafeteria zentral | B57: FL | C57: 20 | D57: wenn wirtschaftlicher Geschäftsbetrieb nicht anrechenbar
A58: Rettungswege (Heimmindestbauverordnung) | B58: FL | C58: 10
A59: Sonstiges: | B59: FL | C59: 0
A60: Gesamt Fachleistungsfläche | C60: =SUM(C33:C59) -> 389
A62: Mischflächen (von m²-Erfassung ausgenommen) | B62: Die Mischflächen werden rechnerisch nicht in die Gesamtfläche einberechnet, daher ist eine m²-Erfassung für diese Flächen (C61-C72) hier nicht erforderlich (vgl. Empfehlung der Bund-Länder-AG).
A63: Kellerräume/ Entsorgung | B63: KdU/FL | C63: 0 | D63: keine Eintragung erforderlich
A64: Abstellräume/ Lager | B64: KdU/FL | C64: 0 | D64: keine Eintragung erforderlich
A65: Waschküche | B65: KdU/FL | C65: 0 | D65: keine Eintragung erforderlich
A66: Dachboden/ Bodenräume | B66: KdU/FL | C66: 0 | D66: keine Eintragung erforderlich
A67: Trockenräume | B67: KdU/FL | C67: 0 | D67: keine Eintragung erforderlich
A68: Garagen | B68: KdU/FL | C68: 0 | D68: keine Eintragung erforderlich
A69: Flur | B69: KdU/FL | C69: 25 | D69: keine Eintragung erforderlich
A70: Hauseingang/ Treppenhaus | B70: KdU/FL | C70: 0 | D70: keine Eintragung erforderlich
A71: Hausanschluss | B71: KdU/FL | C71: 0 | D71: keine Eintragung erforderlich
A72: Aufzug | B72: KdU/FL | C72: 0 | D72: keine Eintragung erforderlich
A73: Gesamt Mischflächen | C73: =SUM(C63:C72) -> 25
A76: Ergebnis
A77: Flächenzuordnung
A78: m² | B78: Gesamtwert | C78: je Bewohner | D78: Flächenverteilungsschlüssel
A79: ∑ KdU-Fläche | B79: =C15+C30 -> 950 | C79: =B79/'1. Datenerfassung'!B22 -> 39.58333333 | D79: =B79/B81 -> 0.7094846901
A80: ∑ FL-Fläche | B80: =C60 -> 389 | C80: =B80/'1. Datenerfassung'!B22 -> 16.20833333 | D80: =B80/B81 -> 0.2905153099
A81: Gesamtfläche (ohne Mischflächen) | B81: =B79+B80 -> 1339 | C81: =B81/'1. Datenerfassung'!B22 -> 55.79166667
A82: optional: Gesamtfläche (inkl. Mischflächen) | B82: =B81+C73 -> 1364 | C82: =B82/'1. Datenerfassung'!B22 -> 56.83333333
B89: Dropdownliste Zuordnung
B90: KdU
B91: FL
B92: KdU/FL
B93: -

Sheet 3. Kostenzuordnung & Mietber.
A1: Erhebungstool Trennung der Leistungen im Bundesteilhabegesetz ab 2020
A4: 3. Kostenzuordnung & Mietpreisberechnung (KdU+Fachleistungsanteil)
C6: Bisher sind Beispielzahlen hinterlegt, bitte in Spalte C eigene Werte (aggregierte Ist-Kosten für ein Jahr (z.B. 2017) summiert über alle Bewohner) eingeben. Gefärbte Felder können nicht verändert werden. Wenn Sie keine detaillierten Werte haben, dann tragen Sie bitte die Ihnen bekannten Summen an beliebiger Stelle je Block ein.
B8: Kostenposition | C8: aggregierte Ist-Kosten pro Jahr (€) | D8: Anmerkungen | G8: Bezugsjahr der eingegeben Daten
A10: Nettokaltmiete | B10: Miete, Pacht | F10: Werte für Jahr: | G10: 2017
B11: Kosten Pacht für Grundstück | C11: 50000
B12: Miete Gebäude | C12: 3000
B13: Miete, Pacht Gesamt | C13: =SUM(C11:C12) -> 53000
B15: Abschreibungen | D15: ohne Abzug von Fördermitteln
B16: Neubau Gebäude | C16: 70000 | D16: Abschreibungswert 33 Jahre; kalkulatorische Miete; Annahme: tatsächliche Herstellungskosten
B17: Sanierung Gebäude | C17: 10000 | D17: Abschreibungswert 33 Jahre
B18: 200 Herrichten und Erschließen | C18: 1000 | D18: Abschreibungswert 33 Jahre
B19: 300 Bauwerk - Baukonstruktion | C19: 1000 | D19: Abschreibungswert 33 Jahre
B20: 400 Technische Anlagen | C20: 1000 | D20: Abschreibungswert 15 Jahre
B21: 500 Außenanlagen | C21: 1000 | D21: Abschreibungswert 10 Jahre
B22: 600 Ausstattung Bau | C22: 1000 | D22: Abschreibungswert 10 Jahre
B23: 700 Herstellungsnebenkosten | C23: 1000 | D23: Abschreibungswert 33 Jahre
B24: Gesamt Abschreibungen | C24: =SUM(C16:C23) -> 86000
B26: Einrichtung und Ausstattung
B27: Instandhaltung Bewohnerzimmer | C27: 2000
B28: Abschreibung aus Möblierung (Fachleistungsräume) | C28: 4000 | D28: Abschreibungswert 10 Jahre
B29: Abschreibung aus Möblierung (Wohneinheit) | C29: 3000 | D29: gesondert auszuweisen nach § 42a Abs. 5 Nr. 1-4, Abschreibungswert 10 Jahre
B30: Abschreibung aus Möblierung (Gemeinschaftsräume) | C30: 10000 | D30: gesondert auszuweisen nach § 42a Abs. 5 Nr. 1-4, Abschreibungswert 10 Jahre
B31: Abschreibung aus Möblierung (übrige Räume) | C31: 3000 | D31: gesondert auszuweisen nach § 42a Abs. 5 Nr. 1-4, Abschreibungswert 10 Jahre
B32: Abschreibung Elektrogroßgeräte (Gemeinschaftsräume) | C32: 5000 | D32: gesondert auszuweisen nach § 42a Abs. 5 Nr. 1-4, Abschreibungswert 10 Jahre
B33: Gesamt Ausstattung | C33: =SUM(C27:C32) -> 27000
B35: Sonderposten
B36: Sonderposten | C36: 20000 | D36: zwei Varianten möglich: aufgrund unsicherer zukünftiger Fördermittelsituation kann der Mietpreis entweder unter Berücksichtigung der bisherigen Sonderposten (Variante A) oder ohne Berücksichtigung der Sonderposten (Variante B) berechnet werden. In den Ergebnissen (s.u.) werden beide Varianten ausgegeben.
B37: Sonderposten Gesamt | C37: =C36 -> 20000
B39: Finanzierungskosten
B40: Zinsaufwand für Darlehen | C40: 2000 | D40: tatsächliche Kosten
B41: eingesetzte Eigenmittel | C41: 30000
B42: Eigenkapitalzins | C42: =C41*0.04 -> 1200 | D42: Annahme: 4% der eingesetzten Eigenmittel
B43: Finanzierungskosten Gesamt | C43: =C40+C42 -> 3200
B45: Instandhaltungskosten und Wartung
B46: Instandhaltung Gebäude | C46: 500
B47: Instandhaltung Gebäudetechnik und Einrichtung | C47: 500
B48: Instandhaltung Außenanlagen | C48: 500
B49: Wartung Gebäude | C49: 1000
B50: Wartung der Einrichtung | C50: 1000
B51: Wartung der Gebäudetechnik | C51: 1000
B52: Kosten Hausverwaltung | C52: 2000
B53: Instandhaltungskosten und Wartung Gesamt | C53: =SUM(C46:C52) -> 6500
B55: Versicherungen
B56: Inventarversicherung | C56: 2000
B57: Versicherungen Gesamt | C57: =C56 -> 2000
B59: Nettokaltmiete Gesamt | C59: =C13+C24+C33+C37+C43+C53+C57 -> 197700
A62: Kalte Betriebskosten | B62: Betriebskosten (nach § 2 BetrKV) | D62: Betriebskosten nach Betr.KV; Strom- und Heizkosten ausgegliedert
B63: Grundsteuer | C63: 1000
B64: Wasserversorgung | C64: 1000
B65: Entwässerung | C65: 800
B66: Warmwasserversorgung | C66: 4000
B67: Betrieb und Wartung Aufzug | C67: 2000
B68: Straßenreinigung | C68: 2000
B69: Müllbeseitigung/Abfallentsorgung | C69: 1000
B70: Gebäudereinigung | C70: 2000 | D70: bezieht sich auf die Betriebsflächen
B71: Ungezieferbekämpfung | C71: 500
B72: Gartenpflege | C72: 1000
B73: Beleuchtung | C73: 800
B74: Schornsteinreinigung | C74: 1000
B75: Sach- und Haftpflichtversicherung | C75: 1000 | D75: umfasst Gebäudeversicherung
B76: Hauswartkosten | C76: 3000
B77: Betrieb Gemeinschaftsantennenanlage | C77: 3000
B78: Betriebskosten Gesamt | C78: =SUM(C63:C77) -> 24100
B80: Reinigungskosten | D80: Abstimmung zum Regelbedarf nötig, Aufteilung individ. Wohnraum, Verkehrsflächen, FL-Flächen schwer zu trennen, muss aus unterschiedl. Töpfen bezahlt werden
B81: Reinigung der Verkehrsflächen | C81: 500
B82: Kosten der Gebäudereinigung (Wohn- und Geschäftsflächen) inkl. Glasreinigung | C82: 500
B83: Pflege der Außenflächen | C83: 1000
B84: Kosten Winterdienst | C84: 1000
B85: Reinigungskosten | C85: =SUM(C81:C84) -> 3000
B87: Kalte Betriebskosten Gesamt | C87: =C78+C85 -> 27100
A90: Strom- und Heizkosten | B90: Stromkosten | C90: 1200 | D90: Berechnungsformel für den Strom ist so angelegt, dass ein Betrag für den Gesamtstrom (Zeile C90) eingetragen werden kann und daraufhin die Bereiche Haushalts-, Individual- und FL-Strom automatisch anteilig ausgerechnet werden, sodass keine gesondert erfassten Einzelbeträge eingetragen werden müssten
B91: individueller Strom (RBS) | C91: =C90*('2. Flächenzuordnung'!C15/'2. Flächenzuordnung'!B81) -> 613.8909634
B92: Haushaltsstrom (Gemeinschaftsfläche) | C92: =C90*('2. Flächenzuordnung'!C30/'2. Flächenzuordnung'!B81) -> 237.4906647 | D92: gesondert auszuweisen nach § 42a
B93: FL-Fläche | C93: =C90*('2. Flächenzuordnung'!C60/'2. Flächenzuordnung'!B81) -> 348.6183719
B94: Stromkosten Gesamt | C94: =SUM(C91:C93) -> 1200
B96: Heizkosten
B97: Heizkosten (Gas, Öl, Fernwärme, etc.) | C97: 2000
B98: Heizkosten Gesamt | C98: =SUM(C97) -> 2000
A101: Sonstige Kosten | B101: Leitungsgebundene
B102: Telefonanschlüsse, Internetanschlüsse; Telefonanlage | C102: 1000 | D102: gesondert auszuweisen nach § 42a
B103: Telefongebühren, Internetgebühren | C103: 7000 | D103: gesondert auszuweisen nach § 42a
B104: Leitungsgebundene Kosten Gesamt | C104: =SUM(C102:C103) -> 8000
B106: Sonstiges
B107: Raumkosten zusätzlich genutzter Gemeinschaftsflächen in separaten Gebäuden | C107: 800 | D107: Kosten nur anteilig für die einrichtungsbezogene Nutzung eintragen
B109: Sonstige Kosten Gesamt | C109: =C104+C107 -> 8800
B113: Gesamtübersicht | C113: Gesamtkosten pro Jahr | D113: je Bewohner pro Monat
B115: Nettokaltmiete | C115: =C13+C24+C33+C37+C43+C53+C57 -> 197700 | D115: =C115/'1. Datenerfassung'!B22/12 -> 686.4583333
B116: Betriebskosten | C116: =C87 -> 27100 | D116: =C116/'1. Datenerfassung'!B22/12 -> 94.09722222
B117: Heizkosten | C117: =C98 -> 2000 | D117: =C117/'1. Datenerfassung'!B22/12 -> 6.944444444
B118: Sonstige Kosten | C118: =C109 -> 8800 | D118: =C118/'1. Datenerfassung'!B22/12 -> 30.55555556
B119: Sonderposten | C119: =C36 -> 20000 | D119: =C119/'1. Datenerfassung'!$B$22/12 -> 69.44444444
B120: Leerstandswagnis (5%) | C120: =SUM(C115:C119)*0.05 -> 12780 | D120: =C120/'1. Datenerfassung'!$B$22/12 -> 44.375
B121: Mietausfallwagnis (5%) | C121: =SUM(C115:C119)*0.05 -> 12780 | D121: =C121/'1. Datenerfassung'!$B$22/12 -> 44.375
B122: Haushaltsstrom | C122: =C92 -> 237.4906647 | D122: =C122/'1. Datenerfassung'!B22/12 -> 0.8246203635
B123: Fachleistungsstrom | C123: =C93 -> 348.6183719 | D123: =C123/'1. Datenerfassung'!B22/12 -> 1.210480458
B125: Bruttowarmmiete (inkl. HH- & FL-Strom, abzgl. Sonderposten) (Variante A) aufgeteilt nach | C125: Gesamtkosten pro Jahr (€) | D125: je Bewohner pro Monat (€)
B126: KdU-Flächenanteil | C126: =(C115+C116+C117+C118+C120+C121-C119)*'2. Flächenzuordnung'!D79+'3. Kostenzuordnung & Mietber.'!C122 -> 171336.8185 | D126: =C126/'1. Datenerfassung'!B22/12 -> 594.9195088
B127: FL-Flächenanteil | C127: =(C115+C116+C117+C118+C120+C121-C119)*'2. Flächenzuordnung'!D80+'3. Kostenzuordnung & Mietber.'!C123 -> 70409.29052 | D127: =C127/'1. Datenerfassung'!B22/12 -> 244.4767032
B128: Bruttowarmmiete Gesamt (abzgl. Sonderposten) | C128: =SUM(C126:C127) -> 241746.109 | D128: =SUM(D126:D127) -> 839.3962119
B130: Bruttowarmmiete (inkl. HH- & FL-Strom, ohne Sonderposten) (Variante B) aufgeteilt nach | C130: Gesamtkosten pro Jahr | D130: je Bewohner pro Monat
B131: KdU-Flächenanteil | C131: =(C115+C116+C117+C118+C120+C121)*'2. Flächenzuordnung'!D79+'3. Kostenzuordnung & Mietber.'!C122 -> 185526.5123 | D131: =C131/'1. Datenerfassung'!B22/12 -> 644.1892789
B132: FL-Flächenanteil | C132: =(C115+C116+C117+C118+C120+C121)*'2. Flächenzuordnung'!D80+'3. Kostenzuordnung & Mietber.'!C123 -> 76219.59671 | D132: =C132/'1. Datenerfassung'!B22/12 -> 264.6513775
B133: Bruttowarmmiete Gesamt (ohne Sonderposten) | C133: =SUM(C131:C132) -> 261746.109 | D133: =SUM(D131:D132) -> 908.8406564
B135: Werte des örtlich zuständigen Grundsicherungsträgers pro Bewohner pro Monat (€)
B137: Grundsicherungsmiete nach örtlichem Träger | C137: ='1. Datenerfassung'!B32 -> 430 | D137: ='1. Datenerfassung'!B32 -> 430
B138: darin enthalten:
A139: gesondert auszu-weisen nach § 42a Abs. 5 SGB IX | B139: Haushaltsstrom, Instandhaltung von persönlichen Räumlichkeiten und den Räumlichkeiten zur gemeinschaftlichen Nutzung sowie Ausstattung mit Haushaltsgroßgeräten | C139: =(C29+C30+C31+C32+C92)/'1. Datenerfassung'!B22/12 -> 73.74128703 | D139: =C139 -> 73.74128703
B140: Gebühren für Telekommunikation sowie Gebühren für den Zugang zu Rundfunk, Fernsehen und Internet | C140: =(C102+C103)/'1. Datenerfassung'!B22/12 -> 27.77777778 | D140: =C140 -> 27.77777778
B141: Aufschlag 25% (wenn tatsächl. BWM KdU-Flächen > angem. GruSi nach örtl. Träger) | C141: =IF(D126 > C137,C137*0.25,0) -> 107.5 | D141: =IF(D131 > C137,C137*0.25,0) -> 107.5
B142: Grundsicherungsmiete Gesamt (inkl. 25% Aufschlag) | C142: =C137+C141 -> 537.5 | D142: =D137+D141 -> 537.5
B146: Ergebnis
B147: Mietpreisberechnung
B149: Ergebnis (Werte pro Monat pro Bewohner) | C149: Variante A: abzgl. Sonderposten | D149: Variante B: ohne Berücksichtigung Sonderposten | E149: Zuständigkeit
B152: Grundsicherungsmiete Gesamt (inkl. 25% Aufschlag) | C152: =C142 -> 537.5 | D152: =D142 -> 537.5 | E152: Grundsicherungsträger
B154: Investitionsbetrag "Miete" (Überschussbetrag) (KdU> 125%) | C154: =C160-C152-D127 -> 57.41950875 | D154: =D160-D152-D158 -> 106.6892789 | E154: EGH-Träger
B156: Bruttowarmmiete je Bewohner | C156: =D126 -> 594.9195088 | D156: =D131 -> 644.1892789
B158: Investitionsbetrag "Fachleistungsräume" | C158: =D127 -> 244.4767032 | D158: =D132 -> 264.6513775 | E158: EGH-Träger
B160: Gesamtkosten (KdU&FL) | C160: =D128 -> 839.3962119 | D160: =D133 -> 908.8406564

Sheet 4. Regelbedarf
A1: Erhebungstool Trennung der Leistungen im Bundesteilhabegesetz ab 2020
B3: 4. Regelbedarf
I4: Bezugsjahr der eingegeben Daten
D5: 1. entscheiden, welche Positionen von Leistungserbringer finanziert werden sollen (x)
B6: 2. tatsächl. oder geschätzte Kosten pro Bewohner eingeben | H6: Werte für Jahr: | I6: 2017
A8: Nr. | B8: Gütergruppen in der Einkommens- und Verbrauchsstichprobe 2013* | C8: tatsächliche Kosten pro Bewohner pro Monat (Ist-Kosten oder geschätzte Werte) | D8: davon durch Leistungserbringer zu finanzieren | E8: davon durch Leistungs-berechtigten zu finanzieren | F8: Monatl. Betrag nach Regelbedarfsstufe 2/2018** | G8: Differenz RBS 2 zu tatsächl. Kosten | H8: Monatl. Betragnach Regelbedarfsstufe 1/2018** | I8: Differenz RBS 1 zu tatsächl. Kosten
A9: 1 | B9: Nahrungsmittel und alkoholfreie Getränke | C9: 150 | D9: x | E9: =IF(D9="x","","x") ->  | F9: 132.77 | G9: =F9-C9 -> -17.23 | H9: 145.2 | I9: =H9-C9 -> -4.8
A10: 3 | B10: Bekleidung und Schuhe | C10: 31.42 | E10: =IF(D10="x","","x") -> x | F10: 31.42 | G10: =F10-C10 -> 0 | H10: 34.36 | I10: 2.94
A11: 4 | B11: Wohnen, Energie und Instandhaltung*** | C11: =('3. Kostenzuordnung & Mietber.'!C91/12)/'1. Datenerfassung'!B22 -> 2.131565845 | D11: x | F11: 31.27 | G11: =F11-C11 -> 29.13843415 | H11: 34.19 | I11: 32.05843415
A12: 5 | B12: Innenausstattung, Haushaltsgeräte und -gegenstände, laufende Haushaltsführung**** | C12: 22.66 | D12: x | E12: =IF(D12="x","","x") ->  | F12: 28.35 | G12: 5.69 | H12: 31 | I12: 8.34
A13: 6 | B13: Gesundheitspflege | C13: 15 | E13: x | F13: 16.08 | G13: 1.08 | H13: 17.59 | I13: 2.59
A14: 7 | B14: Verkehr | C14: 12 | D14: x | F14: 23.56 | G14: 11.56 | H14: 25.77 | I14: 13.77
A15: 8 | B15: Nachrichtenübermittlungen | C15: 33.02 | D15: x | F15: 33.02 | G15: 0 | H15: 36.11 | I15: 3.09
A16: 9 | B16: Freizeit, Unterhaltung, Kultur | C16: 39 | E16: x | F16: 41.29 | G16: 2.29 | H16: 45.15 | I16: 6.15
A17: 10 | B17: Bildung | C17: 20 | D17: x | F17: 1.42 | G17: -18.58 | H17: 1.55 | I17: -18.45
A18: 11 | B18: Beherbergungs- und Gaststättenleistungen | C18: 12 | E18: x | F18: 7.41 | G18: -4.59 | H18: 8.1 | I18: -3.9
A19: 12 | B19: Andere Waren und Dienstleistungen | C19: 36 | D19: x | F19: 27.38 | G19: -8.62 | H19: 29.94 | I19: -6.06
B20: Summe | C20: =SUM(C9:C19) -> 373.2315658 | D20: =SUMIF(D9:D19,"x",C9:C19) -> 275.8115658 | E20: =SUMIF(E9:E19,"x",C9:C19) -> 97.42 | F20: =ROUNDUP(SUM(F9:F19), 0) -> 374 | G20: =F20-C20 -> 0.7684341548 | H20: =ROUNDUP(SUM(H9:H19),0) -> 409 | I20: 35.76843415 | J20: * | K20: Für einzelne Bestandteile der Gütergruppen siehe Tabelle unten
J21: ** | K21: Hochrechnung auf Basis der Angaben für RBS 2, 2017 (http://www.harald-thome.de/fa/harald-thome/files/Aufteilung-Regelbedarf-2017.pdf), i.V.m. https://www.hartz4.net/regelsatz/
J22: *** | K22: Individueller Strom aus Tabellenblatt 3 (Kostenzuordnung) (C89) je Bewohner je Monat
B23: Ergebnis | J23: **** | K23: persönliche, individuelle Einrichtungsgegenstände (in Abgrenzung zu Ausstattung)
B24: Regelbedarf
B25: Variante 1: Zuerst wird der individuelle Bedarf des Leistungsberechtigten im Gesamtplanverfahren ermittelt, Leistungserbringer erhält den anschließend übrig bleibenden Betrag des Regelbedarfs. --> Defizitbetrag zu Lasten des Leistungserbringers | F25: Variante 2: Leistungserbringer errechnet zuerst den benötigten Anteil des Regelbedarfs für seine Vorhalteleistungen zum notwendigen Lebensunterhalt. Der Rest des Regelbedarfs verbleibt für den individuellen Bedarf des Leistungsberechtigten --> Defizitbetrag zu Lasten des Leistungsberechtigten
B26: zur Verfügung stehender RBS 2 | D26: =F20 -> 374 | F26: zur Verfügung stehender RBS 2 | H26: =F20 -> 374
B27: Anteil Regelbedarf für Leistungsberechtigten ("neuer Barbetrag") | D27: =E20 -> 97.42 | F27: verbleibender Anteil Regelbedarf für Leistungsberechtigten ("neuer Barbetrag") | H27: =F20-D20 -> 98.18843415
B28: verbleibender Anteil Regelbedarf für Leistungserbringer | D28: =F20-E20 -> 276.58 | F28: Anteil Regelbedarf für Leistungs-erbringer | H28: =D20 -> 275.8115658
B29: Fehlbetrag RBS 2 zu tatsächlichen Kosten: Defizitbetrag zu Lasten des Leistungserbringers | D29: =F20-C20 -> 0.7684341548 | F29: Fehlbetrag RBS 2 zu tatsächlichen Kosten: Defizitbetrag zu Lasten des Leistungserbringers | H29: =F20-C20 -> 0.7684341548
B30: Fehlbetrag RBS 1 zu tatsächlichen Kosten: Defizitbetrag zu Lasten des Leistungserbringers | D30: =H20-C20 -> 35.76843415 | F30: Fehlbetrag RBS 1 zu tatsächlichen Kosten: Defizitbetrag zu Lasten des Leistungserbringers | H30: =H20-C20 -> 35.76843415
B32: Übersicht Einzelpositionen der statistischen Zusammensetzung des Regelbedarfs
B33: Abteilung, Code | C33: Gegenstand der Nachweisung
B34: 01 | C34: Nahrungsmittel, alkoholfreie Getränke
B35: 0110 000 | C35: Nahrungsmittel
B36: 0120 000 | C36: Getränke
B37: 0210 000 | C37: alkoholische Getränke (substituiert durch Mineralwasser)
B38: 03 | C38: Bekleidung und Schuhe
B39: 0312 100 | C39: Bekleidung für Herren ab 14
B40: 0312 200 | C40: Bekleidung für Damen ab 14
B41: 0311 000 | C41: Bekleidungsstoffe
B42: 0313 000 | C42: Bekleidungszubehör
B43: 0321 100 | C43: Schuhe für Herren ab 14
B44: 0321 200 | C44: Schuhe für Damen ab 14
B45: 0321 900 | C45: Schuhzubehör
B46: 0314 100 | C46: fremde Änderungen und Reparaturen an Bekleidung (einschl. Leihgebühren)
B47: 0322 000 | C47: fremde Änderungen und Reparaturen an Schuhen (einschl. Leihgebühren)
B48: 04 | C48: Wohnen, Energie und Wohnungsinstandhaltung
B49: 0451 010 | C49: Strom (auch Solarenergie)
B50: 0431 000 | C50: Ausgaben für Instandhaltung und Schönheitsreparaturen Eigenleistungen Mieter- Untermieterinnen für Haupt-, Zweit- und Freizeitwohnungen
B51: 0431 915 | C51: Ausgaben für kleinere Instandhaltung, Reparaturen der Eigentümer, Eigenleistungen
B52: 0413 900 | C52: Ausgaben für Instandhaltung /Schönheitsreparaturen – Fremdleistungen Mieter- / Untermieterinnen für Haupt-, Zweit- und Freizeitwohnungen
B53: 0432 915 | C53: Ausgaben für kleinere Instandhaltung, Reparaturen der Eigentümer, Fremdleistungen (Handwerker/-innen)
B54: 05 | C54: Innenausstattung, Haushaltsgeräte und -gegenstände
B55: 0511 090 | C55: Lieferung, Installation von Möbeln und elektrischen Leuchten
B56: 0511 900 | C56: Möbel und Einrichtungsgegenstände
B57: 0512 090 | C57: Verlegen von Teppichen und elastischen Bodenbelägen
B58: 0512 910 | C58: Teppiche und elastische Bodenbeläge
B59: 0520 900 | C59: Heimtextilien
B60: 0531 100 | C60: Kühlschränke, Gefrierschränke / -truhen
B61: 0531 200 | C61: Waschmaschinen, Wäschetrockner, Geschirrspül- und Bügelmaschinen
B62: 0531 900 | C62: fremde Installationen Haushalts- großgeräten
B63: 0531 901 | C63: sonstige größere Haushaltsgeräte
B64: 0532 000 | C64: kleine elektrische Haushaltsgeräte
B65: 0540 400 | C65: Reparaturen an Glaswaren, Geschirr und anderen Gebrauchs-gegenständen für die Haushaltsführung
B66: 0540 900 | C66: Glaswaren, Geschirr und andere Haushaltsgegenstände
B67: 0551 902 | C67: elektrische Werkzeuge (inkl. Reparaturen, Miete)
B68: 0552 030 | C68: andere Gebrauchsgüter fürs Haus (Metallwaren, Elektroartikel)
B69: 0552 902 | C69: nicht elektrische Werkzeuge (inkl. Reparaturen, Miete)
B70: 0561 000 | C70: Verbrauchsgüter Haushaltsführung
B71: 0513 000 | C71: Reparatur von Möbeln, Einrichtungs- gegenständen, Bodenbelägen
B72: 0533 000 | C72: Reparaturen an Haushaltsgeräten (inkl. Mieten)
B73: 06 | C73: Gesundheitspflege
B74: 0611 010 | C74: pharmazeutische Erzeugnisse - für gesetzlich Krankenversicherte - mit Rezept (nur Eigenanteil/ Zuzahlg)
B75: 0611 900 | C75: pharmazeutische Erzeugnisse mit/ohne Rezept (verauslagter Gesamtbetrag)
B76: 0612 010 | C76: andere medizinische Erzeugnisse - für gesetzlich Krankenversicherte - mit Rezept (nur Eigenanteil/ Zuzahlg)
B77: 0612 900 | C77: andere medizinische Erzeugnisse mit/ohne Rezept (verauslagter Gesamtbetrag)
B78: 0613 900 | C78: therapeutische Mittel und Geräte (einschl. Eigenanteile)
B79: 07 | C79: Verkehr
B80: 0713 000 | C80: Kauf oder Leasing von Fahrrädern
B81: 0721 070 | C81: Zubehör, Einzel- und Ersatzteile für Fahrräder
B82: 0723 000 | C82: Wartungen/Reparaturen
B83: 0730 901 | C83: fremde Verkehrsdienstleistungen (ohne Übernachtung) - nicht Luftverkehr
B84: 0730 902 | C84: fremde Verkehrsdienstleistungen ( mit Übernachtung) - nicht Luftverkehr
B85: 08 | C85: Nachrichtenübermittlung
B86: 0820 000 | C86: Kauf und Reparatur von Festnetz und Mobiltelefonen sowie anderen Kommunikationsgeräten
B87: 0810 000 | C87: Post- und Paketdienstleistungen, private Brief- und Paketzustelldienste, Gebühren und Entgelte, Versandkosten
B88: 0830 401 | C88: Kommunikationsdienstleistungen - Doppelflatrate Festnetztelefon und Internet (Kombipaket)
B89: 09 | C89: Freizeit, Unterhaltung und Kultur
B90: 0911 100 | C90: Tonempfangs-, -aufnahme und -wiedergabegeräte
B91: 0911 200 | C91: Fernseh- und Videogeräte, TV-Antennen
B92: 0913 000 | C92: Datenverarbeitungsgeräte sowie System- und Anwendungssoftware (einschl. Downloads und Apps)
B93: 0914 000 | C93: Bild-, Daten- und Tonträger (einschl. Downloads von Filmen, Musik, Fotos und entsprechenden Apps)
B94: 0921 900 | C94: langlebige Gebrauchsgüter und Ausrüstungen für Sport, Camping und Erholung, Musikinstrumente
B95: 0931 900 | C95: Spielwaren (auch Computer-, Onlinespiele, Downloads und Apps)
B96: 0932 010 | C96: Sportartikel
B97: 0941 020 | C97: außerschulische Sport- und Musikunterrichte, Hobbykurse
B98: 0941 040 | C98: Miete/Leihgebühren für Sport- und Campingartikel
B99: 0941 040 | C99: Eintrittsgelder, Nutzungsentgelte beim Besuch von Sport und Freizeitveranstaltungen bzw. -einrichtungen
B100: 0941 910 | C100: Dienstleistungen von Fotografen, Fotolabors, Fotoservices u. Ä.
B101: 0942 430 | C101: Eintrittsgelder, Nutzungsentgelte beim Besuch von Kultur- veranstaltungen bzw. -einrichtungen
B102: 0942 910 | C102: sonstige Freizeit- und Kulturdienstleistungen
B103: 0951 000 | C103: Bücher und Broschüren (einschließlich Downloads und Apps)
B104: 0952 090 | C104: Miete/-Leihgebühr für Bücher, Zeitschriften
B105: 0952 900 | C105: Zeitungen und Zeitschriften, Landkarten und Globen (einschl. Downloads und Apps)
B106: 0953 900 | C106: sonstige Gebrauchsgüter für Schule, Büro, Unterhaltung und Freizeit
B107: 0954 900 | C107: sonstige Verbrauchsgüter (Schreibwaren, Zeichenmaterial i.A.)
B108: 0915 000 | C108: Reparaturen von Geräten für Empfang, Aufnahme und Wiedergabe von Ton und Bild, von Foto- und Filmausrüstungen und von optischen und Datenverarbeitungsgeräten
B109: 0923 900 | C109: Reparaturen und Installationen von langlebigen Gebrauchsgütern und Ausrüstungen für Kultur, Sport, Camping und Erholung, Musikinstrumente sowie Sport- und Campingartikeln
B110: 10 | C110: Bildungswesen
B111: 1050 900 | C111: Gebühren für Kurse (ohne Erwerb von Bildungsabschlüssen)
B112: 11 | C112: Beherbergungs- und Gaststättendienstleistungen
B113: 1111 000 | C113: Speisen und Getränke in Restaurants, Cafés, Eisdielen, an Imbissständen und vom Lieferservice
B114: 1112 000 | C114: Speisen und Getränke in Kantinen und Mensen
B115: 12 | C115: Andere Waren und Dienstleistungen
B116: 1231 902 | C116: Uhren (auch Reparaturen)
B117: 1211 030 | C117: andere Dienstleistungen für die Körperpflege
B118: 1211 101 | C118: Friseurdienstleistungen für Herren (Kosten einschl. Trinkgelder)
B119: 1211 200 | C119: Friseurdienstleistungen für Damen (Kosten einschl. Trinkgelder)
B120: 1212 200 | C120: elektrische Geräte für die Körperpflege (einschl. Reparaturen)
B121: 1213 010 | C121: nichtelektrische Gebrauchsgüter für die Körperpflege
B122: 1213 090 | C122: Toilettenpapier, Papiertaschentücher und ähnliche Hygieneartikel
B123: 1213 920 | C123: Körperpflegemittel, Duft- und Schönheitserzeugnisse
B124: 1262 900 | C124: Finanzdienstleistungen
B125: 1270 900 | C125: sonstige Dienstleistungen, a. n. g.
B126: 1541 000 | C126: Mitgliedsbeiträge für Vereine, Parteien u. Ä.

Sheet 5. Zusammenfassung
A1: Erhebungstool Trennung der Leistungen im Bundesteilhabegesetz ab 2020
A4: 4. Zusammenfassung der Ergebnisse
A8: 1. Anzahl der Bewohner
A10: ='1. Datenerfassung'!B22 -> 24
A13: 2. Ergebnis Flächenzuordnung
A15: Bereich | B15: Gesamtwert (m²) | C15: je Bewohner (m²)
A16: ∑ Individueller Wohnraum | B16: ='2. Flächenzuordnung'!C15 -> 685 | C16: =B16/'5. Zusammenfassung'!$A$10 -> 28.54166667
A17: ∑ Gemeinsamer Wohnraum | B17: ='2. Flächenzuordnung'!C30 -> 265 | C17: =B17/'5. Zusammenfassung'!$A$10 -> 11.04166667
A18: ∑ Fachleistungsflächen | B18: ='2. Flächenzuordnung'!B80 -> 389 | C18: =B18/'5. Zusammenfassung'!$A$10 -> 16.20833333
A20: ='2. Flächenzuordnung'!D78 -> Flächenverteilungsschlüssel
A21: KdU | B21: ='2. Flächenzuordnung'!D79 -> 0.7094846901
A22: FL | B22: ='2. Flächenzuordnung'!D80 -> 0.2905153099
A24: Zuordnung | B24: Gesamtwert (m²) | C24: je Bewohner (m²)
A25: ='2. Flächenzuordnung'!A79 -> ∑ KdU-Fläche | B25: ='2. Flächenzuordnung'!B79 -> 950 | C25: ='2. Flächenzuordnung'!C79 -> 39.58333333
A26: ='2. Flächenzuordnung'!A80 -> ∑ FL-Fläche | B26: ='2. Flächenzuordnung'!B80 -> 389 | C26: ='2. Flächenzuordnung'!C80 -> 16.20833333
A27: ='2. Flächenzuordnung'!A81 -> Gesamtfläche (ohne Mischflächen) | B27: ='2. Flächenzuordnung'!B81 -> 1339 | C27: ='2. Flächenzuordnung'!C81 -> 55.79166667
A30: 3. Ergebnis Kostenzuordnung & Mietpreisberechnung
A32: Mietpreis-Aufteilung (Werte je Bewohner je Monat): | B32: Variante A: abzgl. Sonderposten | C32: Variante B: ohne Berücksichtigung Sonderposten | D32: Zuständigkeit
A33: Grundsicherungsmiete Gesamt (inkl. 25% Aufschlag) | B33: ='3. Kostenzuordnung & Mietber.'!C152 -> 537.5 | C33: ='3. Kostenzuordnung & Mietber.'!D152 -> 537.5 | D33: Grundsicherungsträger
A34: darin enthalten (gesondern auszuweisen nach § 42 a Abs. 5 SGB IX):
A35: Haushaltsstrom, Instandhaltung von persönlichen Räumlichkeiten und den Räumlichkeiten zur gemeinschaftlichen Nutzung sowie Ausstattung mit Haushaltsgroßgeräten | B35: ='3. Kostenzuordnung & Mietber.'!C139 -> 73.74128703 | C35: ='3. Kostenzuordnung & Mietber.'!D139 -> 73.74128703
A36: Gebühren für Telekommunikation sowie Gebühren für den Zugang zu Rundfunk, Fernsehen und Internet | B36: ='3. Kostenzuordnung & Mietber.'!C140 -> 27.77777778 | C36: ='3. Kostenzuordnung & Mietber.'!D140 -> 27.77777778
A38: Investitionsbetrag "Miete" (Überschussbetrag) (KdU > 125%) | B38: ='3. Kostenzuordnung & Mietber.'!C154 -> 57.41950875 | C38: ='3. Kostenzuordnung & Mietber.'!D154 -> 106.6892789 | D38: EGH-Träger | G38: optionale Variation: Hier verschiedene Zimmergrößen eingeben
A40: Bruttowarmmiete je Bewohner | B40: ='3. Kostenzuordnung & Mietber.'!C156 -> 594.9195088 | C40: ='3. Kostenzuordnung & Mietber.'!D156 -> 644.1892789 | F40: m²-Preis für reine Mietfläche (ohne Fachleistungsfläche) | G40: Bew.-Zimmergröße | H40: individueller Mietpreis nach Zimmergröße + Gemeinschaftsfläche/Bew.
F41: =(B40*'1. Datenerfassung'!B22)/'2. Flächenzuordnung'!B79 -> 15.02954548 | G41: 20 | H41: =$F$41*(G41+('2. Flächenzuordnung'!C30/'1. Datenerfassung'!B22)) -> 466.5421411
A42: Investitionsbetrag "Fachleistungsräume" | B42: ='3. Kostenzuordnung & Mietber.'!C158 -> 244.4767032 | C42: ='3. Kostenzuordnung & Mietber.'!D158 -> 264.6513775 | D42: EGH-Träger | G42: 15 | H42: =$F$41*(G42+('2. Flächenzuordnung'!C30/'1. Datenerfassung'!B22)) -> 391.3944137
G43: 12 | H43: =$F$41*(G43+('2. Flächenzuordnung'!C30/'1. Datenerfassung'!B22)) -> 346.3057772
A44: Gesamtkosten KdU&FL | B44: ='3. Kostenzuordnung & Mietber.'!C160 -> 839.3962119 | C44: ='3. Kostenzuordnung & Mietber.'!D160 -> 908.8406564
A47: 4. Regelbedarf
A49: gewährter Regelbedarf (RBS 2) | B49: ='4. Regelbedarf'!F20 -> 374
A50: tatsächliche Kosten notwendiger Lebensunterhalt | B50: ='4. Regelbedarf'!C20 -> 373.2315658
A51: davon durch Leistungserbringer zu finanzieren | B51: ='4. Regelbedarf'!D20 -> 275.8115658
A52: davon durch Leistungsberechtigten zu finanzieren | B52: ='4. Regelbedarf'!E20 -> 97.42
A53: Differenzbetrag zu RBS 2 | B53: ='4. Regelbedarf'!G20 -> 0.7684341548
A54: (Differenzbetrag zu RBS 1) | B54: ='4. Regelbedarf'!I20 -> 35.76843415

Sheet 6. Export
A1: Name der Einrichtung | B1: Postleitzahl | C1: Bundesland | D1: Nutzung zusätzl. Gebäudeeinheiten | E1: Bewohnerzahl | F1: früherer Leistungstyp | G1: max. Grundsicherungsmiete | H1: max. Heizkosten | I1: max. Bruttowarmmiete Grundsicherungsträger | J1: Gesamtwert in m² KdU-Fläche | K1: Gesamtwert in m² FL-Anteil | L1: KdU-Anteil an Gesamtfläche | M1: FL-Anteil an Gesamtfläche | N1: Werte für Jahr (Kosten) | O1: Nettokaltmiete je Bew. Je Monat | P1: Betriebskosten je Bew. Je Monat | Q1: Heizkosten je Bew. Je Monat | R1: Bruttowarmmiete je Bew. Je Monat (abzgl. Sonderposten) | S1: Bruttowarmmiete je Bew. Je Monat (ohne Sonderposten) | T1: durch Grundsicherungsträger gewährte KdU + 25% | U1: Überschussbetrag (KdU>125%) | V1: Überschussbetrag (ohne Sonderposten) | W1: Investitionsbetrag Fachleistungen | X1: Investitionsbetrag Fachleistungen (ohne Sonderposten) | Y1: Gesamtmiete (KdU+FL) | Z1: Gesamtmiete (KdU+FL) (ohne Sonderposten) | AA1: Werte für Jahr (Regelbedarf) | AB1: Regelbedarf Ist-Kosten | AC1: Kosten Einrichtung | AD1: Kosten Leistungsberechtigter | AE1: genutztes Tool
A2: ='1. Datenerfassung'!B6 -> Musterwohnheim | B2: ='1. Datenerfassung'!B10 -> 12345 | C2: ='1. Datenerfassung'!B16 -> Nordrhein-Westfalen | D2: ='1. Datenerfassung'!B18 -> J/N | E2: ='1. Datenerfassung'!B22 -> 24 | F2: ='1. Datenerfassung'!B28 -> 0 | G2: ='1. Datenerfassung'!B30 -> 350 | H2: ='1. Datenerfassung'!B31 -> 80 | I2: ='1. Datenerfassung'!B32 -> 430 | J2: ='2. Flächenzuordnung'!B79 -> 950 | K2: ='2. Flächenzuordnung'!B80 -> 389 | L2: ='2. Flächenzuordnung'!D79 -> 0.7094846901 | M2: ='2. Flächenzuordnung'!D80 -> 0.2905153099 | N2: ='3. Kostenzuordnung & Mietber.'!G10 -> 2017 | O2: ='3. Kostenzuordnung & Mietber.'!D115 -> 686.4583333 | P2: ='3. Kostenzuordnung & Mietber.'!D116 -> 94.09722222 | Q2: ='3. Kostenzuordnung & Mietber.'!D117 -> 6.944444444 | R2: ='3. Kostenzuordnung & Mietber.'!C156 -> 594.9195088 | S2: ='3. Kostenzuordnung & Mietber.'!D156 -> 644.1892789 | T2: ='3. Kostenzuordnung & Mietber.'!C142 -> 537.5 | U2: ='3. Kostenzuordnung & Mietber.'!C154 -> 57.41950875 | V2: ='3. Kostenzuordnung & Mietber.'!D154 -> 106.6892789 | W2: ='3. Kostenzuordnung & Mietber.'!C158 -> 244.4767032 | X2: ='3. Kostenzuordnung & Mietber.'!D158 -> 264.6513775 | Y2: ='3. Kostenzuordnung & Mietber.'!C160 -> 839.3962119 | Z2: ='3. Kostenzuordnung & Mietber.'!D160 -> 908.8406564 | AA2: ='4. Regelbedarf'!I6 -> 2017 | AB2: ='4. Regelbedarf'!C20 -> 373.2315658 | AC2: ='4. Regelbedarf'!D20 -> 275.8115658 | AD2: ='4. Regelbedarf'!E20 -> 97.42 | AE2: Basistool DD
